bitfinex-derivatives/quotes_BNBF0:USTF0_20250401
["timestamp","ask_amount","ask_price","bid_price","bid_amount"]
[1743541572075,0.62883756,610.76,609.27,0.32826169]
[1743541572271,0.62884293,610.75,609.27,0.32826169]
[1743541572471,0.62884829,610.74,609.27,0.32826169]
[1743541572672,0.889,610.77,609.27,0.32826169]
[1743541572673,0.32747695,610.73,609.27,0.32826169]
[1743541572879,0.30138316,610.72,609.27,0.32826169]
[1743541573075,0.62887083,610.71,609.27,0.32826169]
[1743541573377,0.6288762,610.7,609.27,0.32826169]
[1743541573579,0.62888156,610.69,609.27,0.32826169]
[1743541573772,0.62888692,610.68,609.27,0.32826169]
[1743541573978,0.62889228,610.67,609.27,0.32826169]
[1743541574171,0.62889765,610.66,609.27,0.32826169]
[1743541574373,0.62890301,610.65,609.27,0.32826169]
[1743541574579,0.62890837,610.64,609.27,0.32826169]
[1743541574780,0.62891374,610.63,609.27,0.32826169]
[1743541574982,0.62891319,610.62,609.27,0.32826169]
[1743541575278,0.62891856,610.61,609.27,0.32826169]
[1743541575474,0.30137725,610.6,609.27,0.32826169]
[1743541575975,0.3013774,610.59,609.27,0.32826169]
[1743541576181,0.3013774,610.58,609.27,0.32826169]
[1743541576380,0.3013774,610.6,609.27,0.32826169]
[1743541576680,0.3013774,610.59,609.27,0.32826169]
[1743541576876,0.3013774,610.58,609.27,0.32826169]
[1743541577074,0.3013774,610.6,609.27,0.32826169]
[1743541577275,0.3013774,610.59,609.27,0.32826169]
[1743541577474,0.3013774,610.6,609.27,0.32826169]
[1743541577679,0.3013774,610.59,609.27,0.32826169]
[1743541577878,0.32754131,610.61,609.27,0.32826169]
[1743541577879,0.3013774,610.6,609.27,0.32826169]
[1743541578079,0.3013774,610.59,609.27,0.32826169]
[1743541578277,0.3013774,610.58,609.27,0.32826169]
[1743541578477,0.3013774,610.57,609.27,0.32826169]
[1743541578675,0.32754131,610.61,609.27,0.32826169]
[1743541578676,0.3013774,610.56,609.27,0.32826169]
[1743541578981,0.3013774,610.55,609.27,1.56135604]
[1743541579182,0.3013774,610.54,609.27,1.56135604]
[1743541579380,0.3013774,610.53,609.27,1.56135604]
[1743541579582,0.3013774,610.52,609.27,1.56135604]
[1743541579781,0.3013774,610.51,609.27,1.56135604]
[1743541579982,0.3013774,610.52,609.27,1.56135604]
[1743541580184,0.3013774,610.51,609.27,1.56135604]
[1743541580377,0.3013774,610.52,609.27,1.56135604]
[1743541580581,0.28535232,610.53,609.27,1.56135604]
[1743541580781,0.30137174,610.52,609.27,1.56135604]
[1743541580984,0.30137174,610.52,609.27,0.32826169]
[1743541582181,0.28535232,610.53,609.27,0.32826169]
[1743541582483,0.30136575,610.52,609.27,0.32826169]
[1743541582684,0.30136575,610.51,609.27,0.32826169]
[1743541582881,0.28535349,610.52,609.27,0.32826169]
[1743541583078,0.30136575,610.51,609.27,0.32826169]
[1743541585381,0.32754131,610.61,609.27,0.32826169]
[1743541585586,0.30137008,610.6,609.27,0.32826169]
[1743541585785,0.28536519,610.5,609.27,0.32826169]
[1743541585980,0.30137008,610.49,609.27,0.32826169]
[1743541586386,0.30137008,610.58,609.27,0.32826169]
[1743541586587,0.30137008,610.57,609.27,0.32826169]
[1743541586887,0.30137008,610.56,609.27,0.32826169]
[1743541588683,0.30137008,610.55,609.27,0.32826169]
[1743541588886,0.28535934,610.55,609.27,0.32826169]
[1743541589086,0.30137008,610.54,609.27,0.32826169]
[1743541590690,0.30135725,610.53,609.27,0.32826169]
[1743541590889,0.30135725,610.54,609.27,0.32826169]
[1743541591689,0.30135725,610.58,609.27,0.32826169]
[1743541591883,0.28536636,610.53,609.27,0.32826169]
[1743541592089,0.30135725,610.52,609.27,0.32826169]
[1743541593693,0.30135549,610.51,609.27,0.32826169]
[1743541593888,0.30135549,610.5,609.27,0.32826169]
[1743541594087,0.30135549,610.49,609.27,0.32826169]
[1743541594286,0.30135549,610.48,609.27,0.32826169]
[1743541594491,0.30135549,610.52,609.27,0.32826169]
[1743541594687,0.30135549,610.51,609.27,0.32826169]
[1743541594992,0.30135549,610.5,609.27,0.32826169]
[1743541595190,0.30135549,610.52,609.27,0.32826169]
[1743541595387,0.30135549,610.51,609.27,0.32826169]
[1743541595586,0.30135549,610.52,609.27,0.32826169]
[1743541595787,0.28536636,610.53,609.27,0.32826169]
[1743541595788,0.30135549,610.51,609.27,0.32826169]
[1743541595987,1.608,610.51,609.27,0.32826169]
[1743541596187,0.30135549,610.5,609.27,0.32826169]
[1743541597992,0.28536753,610.49,609.27,0.32826169]
[1743541598187,0.30135549,610.48,609.27,0.32826169]
[1743541599491,0.28536753,610.49,609.27,0.32826169]
[1743541600193,0.30129624,610.48,609.27,0.32826169]
[1743541601997,0.902,610.47,609.27,0.32826169]
[1743541602200,0.30129624,610.46,609.27,0.32826169]
[1743541603691,1.038,610.45,609.27,0.32826169]
[1743541603895,0.30129624,610.44,609.27,0.32826169]
[1743541604698,1.038,610.45,609.27,0.32826169]
[1743541604894,0.3013055,610.44,609.27,0.32826169]
[1743541606601,0.30131104,610.43,609.27,0.32826169]
[1743541606794,1.038,610.45,609.27,0.32826169]
[1743541606795,0.30131104,610.44,609.27,0.32826169]
[1743541606993,0.58666102,610.43,609.27,0.32826169]
[1743541607201,0.30131104,610.42,609.27,0.32826169]
[1743541609602,0.30131104,610.44,609.27,0.32826169]
[1743541609803,0.30131104,610.43,609.27,0.32826169]
[1743541610001,0.28535115,610.41,609.27,0.32826169]
[1743541610203,0.30131104,610.4,609.27,0.32826169]
[1743541612410,1.038,610.45,609.27,0.32826169]
[1743541612909,0.285357,610.39,609.27,0.32826169]
[1743541614808,1.048,610.38,609.27,0.32826169]
[1743541615909,0.2853804,610.37,609.27,0.32826169]
[1743541618412,1.048,610.38,609.27,0.32826169]
[1743541618610,0.3013454,610.37,609.27,0.32826169]
[1743541619014,0.58674453,610.37,609.27,0.32826169]
[1743541619216,0.28539913,610.37,609.27,0.32826169]
[1743541620510,0.30134401,610.36,609.27,0.32826169]
[1743541620812,0.28539913,610.37,609.27,0.32826169]
[1743541621017,0.30134401,610.36,609.27,0.32826169]
[1743541621713,0.28539913,610.35,609.27,0.32826169]
[1743541622108,0.30134401,610.34,609.27,0.32826169]
[1743541622316,0.30134681,610.33,609.27,0.32826169]
[1743541622518,0.30134681,610.34,609.27,0.32826169]
[1743541624613,0.58672604,610.33,609.27,0.32826169]
[1743541624819,0.30134681,610.32,609.27,0.32826169]
[1743541625420,1.65337923,610.33,609.27,0.32826169]
[1743541625620,0.30135378,610.32,609.27,0.32826169]
[1743541627924,0.28538509,610.31,609.27,0.32826169]
[1743541628127,0.30135378,610.3,609.27,0.32826169]
[1743541629626,0.886,610.29,609.27,0.32826169]
[1743541629925,0.30135378,610.28,609.27,0.32826169]
[1743541630227,0.886,610.29,609.27,0.32826169]
[1743541630420,0.30135378,610.28,609.27,0.32826169]
[1743541630925,0.58674355,610.28,609.27,0.32826169]
[1743541631126,0.30135378,610.27,609.27,0.32826169]
[1743541633127,0.28538977,610.28,609.27,0.32826169]
[1743541633327,0.886,610.29,609.27,0.32826169]
[1743541633727,0.28536519,610.27,609.27,0.32826169]
[1743541636428,1.437,610.28,609.27,0.32826169]
[1743541636826,0.28537689,610.26,609.27,0.32826169]
[1743541639529,1.437,610.28,609.27,0.32826169]
[1743541639724,0.28537689,610.25,609.27,0.32826169]
[1743541642030,0.944,610.24,609.27,0.32826169]
[1743541645831,0.28537572,610.23,609.27,0.32826169]
[1743541648331,0.944,610.24,609.27,0.32826169]
[1743541648833,0.28538157,610.22,609.27,0.32826169]
[1743541651538,0.944,610.24,609.27,0.32826169]
[1743541651741,0.28538275,610.21,609.27,0.32826169]
[1743541652243,0.28538275,610.21,609.31,1.23309435]
[1743541656044,0.28538275,610.21,609.08,2.98658946]
[1743541656045,0.28538275,610.21,609.33,1.23309435]
[1743541658244,0.28538275,610.21,609.39,1.23309435]
[1743541658443,0.30133085,610.2,609.39,1.23309435]
[1743541658641,1.63933085,610.2,609.39,1.23309435]
[1743541658845,0.30133085,610.19,609.39,1.23309435]
[1743541659442,0.3013329,610.18,609.39,1.23309435]
[1743541659644,1.338,610.2,609.39,1.23309435]
[1743541659844,0.30133261,610.19,609.39,1.23309435]
[1743541660045,1.338,610.2,609.39,1.23309435]
[1743541660241,1.338,610.2,609.41,1.23309435]
[1743541660838,0.28535817,610.19,609.41,1.23309435]
[1743541662542,0.28535817,610.19,609.33,1.23309435]
[1743541663248,1.26635817,610.19,609.33,1.23309435]
[1743541663448,0.981,610.19,609.33,1.23309435]
[1743541665146,0.981,610.19,609.3,1.23309435]
[1743541672056,0.981,610.19,608.99,3.1470729]
[1743541672057,0.981,610.19,609.28,1.23309435]
[1743541672852,0.28539094,610.18,609.28,1.23309435]
[1743541673752,1.553,610.17,608.88,1.23309435]
[1743541675050,1.553,610.17,608.89,2.14908641]
[1743541675250,1.553,610.17,608.9,2.14908641]
[1743541675457,1.553,610.17,608.89,2.14908641]
[1743541675657,1.553,610.17,608.9,2.14908641]
[1743541675857,1.553,610.17,608.89,2.14908641]
[1743541676058,1.553,610.17,608.91,1.23309435]
[1743541676259,1.553,610.17,608.91,3.38218076]
[1743541676458,1.553,610.17,608.92,5.29545139]
[1743541676459,1.102,610.16,608.92,5.29545139]
[1743541676659,1.102,610.16,608.93,2.14908641]
[1743541677056,1.102,610.16,608.93,4.33348562]
[1743541677254,1.102,610.16,608.94,2.14908641]
[1743541677456,1.102,610.16,608.93,4.33348562]
[1743541677660,1.102,610.16,609.51,1.23309435]
[1743541679158,1.102,610.16,609.27,1.23309435]
[1743541679360,1.102,610.16,609.28,0.3282563]
[1743541681964,0.2853886,610.15,609.28,0.3282563]
[1743541682362,1.145,610.14,609.28,0.3282563]
[1743541685269,1.145,610.14,609.38,1.23309435]
[1743541686066,1.346,610.13,609.38,1.23309435]
[1743541687868,1.346,610.13,609.39,0.32819704]
[1743541703983,1.053,610.12,609.39,0.32819704]
[1743541704686,1.49,610.11,609.39,0.32819704]
[1743541705685,1.49,610.11,609.39,1.56129139]
[1743541707486,1.49,610.11,609.39,0.32819704]
[1743541709090,1.244,610.1,609.39,0.32819704]
[1743541710890,1.048,610.09,609.39,0.32819704]
[1743541722995,1.244,610.1,609.39,0.32819704]
[1743541726903,1.263,610.09,609.39,0.32819704]
[1743541731509,0.865,610.08,609.39,0.32819704]
[1743541732505,1.73,610.08,609.39,0.32819704]
[1743541736407,2.882,610.08,609.39,0.32819704]
[1743541742113,2.882,610.08,609.46,1.23309435]
[1743541742312,2.882,610.08,609.47,0.32815396]
[1743541743715,2.882,610.08,609.53,1.23309435]
[1743541744214,2.882,610.08,609.54,0.32811628]
[1743541748012,4.061,610.08,609.54,0.32811628]
[1743541748214,4.061,610.08,609.57,1.23309435]
[1743541748612,4.061,610.08,609.58,0.32809475]
[1743541750317,4.061,610.08,609.6,1.23309435]
[1743541750516,4.061,610.08,609.61,0.3280786]
[1743541751018,3.196,610.08,609.61,0.3280786]
[1743541754727,3.196,610.08,609.62,1.23309435]
[1743541756425,3.196,610.08,609.77,1.23309435]
[1743541759027,3.196,610.08,609.76,1.23309435]
[1743541761128,3.196,610.08,609.61,0.3280786]
[1743541761528,2.044,610.08,609.61,0.3280786]
[1743541771134,2.044,610.08,609.69,1.23309435]
[1743541773040,2.044,610.08,609.7,1.23309435]
[1743541775134,2.044,610.08,609.67,1.23309435]
[1743541775337,2.044,610.08,609.68,0.32804093]
[1743541778136,0.865,610.08,609.68,0.32804093]
[1743541789642,2.175,610.16,609.68,0.32804093]
[1743541791144,3.199,610.16,609.68,0.32804093]
[1743541793750,4.419,610.16,609.68,0.32804093]
[1743541797851,1.14226189,610.16,609.68,0.32804093]
[1743541798048,0.28518863,610.97,609.68,0.32804093]
[1743541798652,2.50824296,611.94,609.68,0.32804093]
[1743541798846,0.28497261,610.96,609.68,0.32804093]
[1743541799251,0.32688284,611.84,609.68,0.32804093]
[1743541799449,0.30099262,611.83,609.68,0.32804093]
[1743541799654,0.32689887,611.81,609.68,0.32804093]
[1743541799953,0.30099262,611.8,609.68,0.32804093]
[1743541800153,0.3269149,611.78,609.68,0.32804093]
[1743541800454,0.30099262,611.77,609.68,0.32804093]
[1743541800651,0.32693093,611.75,609.68,0.32804093]
[1743541800855,0.30098773,611.74,609.68,0.32804093]
[1743541801058,0.32694696,611.72,609.68,0.32804093]
[1743541801257,0.30098773,611.71,609.68,0.32804093]
[1743541801455,0.326963,611.69,609.68,0.32804093]
[1743541801656,0.30098773,611.68,609.68,0.32804093]
[1743541801858,0.32697904,611.66,609.68,0.32804093]
[1743541802156,0.30099611,611.65,609.68,0.32804093]
[1743541802356,0.32699507,611.63,609.68,0.32804093]
[1743541802557,0.30099611,611.62,609.68,0.32804093]
[1743541802753,0.32701111,611.6,609.68,0.32804093]
[1743541802958,0.30099611,611.59,609.68,0.32804093]
[1743541803160,0.32702715,611.57,609.68,0.32804093]
[1743541803359,0.30099611,611.56,609.68,0.32804093]
[1743541803553,0.3270432,611.54,609.68,0.32804093]
[1743541803757,0.30100075,611.53,609.68,0.32804093]
[1743541803953,0.62805464,611.52,609.68,0.32804093]
[1743541804157,0.62805999,611.51,609.68,0.32804093]
[1743541804358,0.62806534,611.5,609.68,0.32804093]
[1743541804559,0.62807069,611.49,609.68,0.32804093]
[1743541804759,0.62807604,611.48,609.68,0.32804093]
[1743541804959,0.62808139,611.47,609.68,0.32804093]
[1743541805162,0.62808674,611.46,609.68,0.32804093]
[1743541805358,0.62809209,611.45,609.68,0.32804093]
[1743541805558,0.62809743,611.44,609.68,0.32804093]
[1743541805758,0.62810278,611.43,609.68,0.32804093]
[1743541805958,0.62810813,611.42,609.68,0.32804093]
[1743541806162,0.62811348,611.41,609.68,0.32804093]
[1743541806365,0.62811883,611.4,609.68,0.32804093]
[1743541806560,0.30100075,611.39,609.68,0.32804093]
[1743541806762,0.32712879,611.38,609.68,0.32804093]
[1743541807064,0.30100075,611.37,609.68,0.32804093]
[1743541807265,0.32713949,611.36,609.68,0.32804093]
[1743541807463,0.30100075,611.35,609.68,0.32804093]
[1743541807661,0.32715019,611.34,609.68,0.32804093]
[1743541807860,0.30100075,611.33,609.68,0.32804093]
[1743541808062,0.32716089,611.32,609.68,0.32804093]
[1743541808263,0.30100075,611.31,609.68,0.32804093]
[1743541808463,0.3271716,611.3,609.68,0.32804093]
[1743541808663,0.30100075,611.29,609.68,0.32804093]
[1743541808858,0.3271823,611.28,609.68,0.32804093]
[1743541809063,0.30100075,611.27,609.68,0.32804093]
[1743541810062,0.3271823,611.28,609.68,0.32804093]
[1743541810368,0.30101232,611.27,609.68,0.32804093]
[1743541811866,0.30100666,611.26,609.68,0.32804093]
[1743541812064,0.30100666,611.27,609.68,0.32804093]
[1743541815068,0.3271823,611.28,609.68,0.32804093]
[1743541815069,0.30100592,611.26,609.68,0.32804093]
[1743541815274,0.30100592,611.27,609.68,0.32804093]
[1743541815473,0.30100592,611.26,609.68,0.32804093]
[1743541815674,0.30100592,611.25,609.68,0.32804093]
[1743541815874,0.30100592,611.27,609.68,0.32804093]
[1743541816074,0.30100592,611.24,609.68,0.32804093]
[1743541816271,0.30100592,611.23,609.68,0.32804093]
[1743541816474,0.30100592,611.27,609.68,0.32804093]
[1743541816676,0.30100592,611.26,609.68,0.32804093]
[1743541816973,0.28509518,611.22,609.68,0.32804093]
[1743541817177,0.30100592,611.21,609.68,0.32804093]
[1743541819879,0.30100592,611.27,609.68,0.32804093]
[1743541820075,0.28509284,611.2,609.68,0.32804093]
[1743541820374,0.30100592,611.19,609.68,0.32804093]
[1743541820774,1.33000592,611.19,609.68,0.32804093]
[1743541820980,0.30100592,611.18,609.68,0.32804093]
[1743541825082,0.30103296,611.17,609.68,0.32804093]
[1743541825282,0.30103296,611.18,609.68,0.32804093]
[1743541825483,0.30103296,611.17,609.68,0.32804093]
[1743541825685,0.30103296,611.16,609.68,0.32804093]
[1743541825886,0.30103296,611.18,609.68,0.32804093]
[1743541826088,0.30103296,611.17,609.68,0.32804093]
[1743541826279,0.30103296,611.18,609.68,0.32804093]
[1743541826484,1.029,611.19,609.68,0.32804093]
[1743541828887,0.28510335,611.18,609.68,0.32804093]
[1743541831485,1.029,611.19,609.68,0.32804093]
[1743541831792,1.03,611.17,609.68,0.32804093]
[1743541832989,0.30099769,611.16,609.68,0.32804093]
[1743541833384,0.974,611.15,609.68,0.32804093]
[1743541833586,0.30099769,611.14,609.68,0.32804093]
[1743541834892,0.58604419,611.13,609.68,0.32804093]
[1743541835191,0.30099805,611.12,609.68,0.32804093]
[1743541835493,0.30099805,611.12,609.93,1.23309435]
[1743541835691,0.30099805,611.12,609.95,0.32789572]
[1743541837795,0.30099805,611.14,609.95,0.32789572]
[1743541837995,0.28501579,611.11,609.95,0.32789572]
[1743541838294,0.30099805,611.1,609.95,0.32789572]
[1743541840694,0.30099805,611.14,609.95,0.32789572]
[1743541840895,0.28502046,611.09,609.95,0.32789572]
[1743541841295,1.23,611.08,609.95,0.32789572]
[1743541841496,1.23,611.08,609.96,1.23309435]
[1743541841695,1.23,611.08,609.98,0.3278796]
[1743541843800,0.28499711,611.07,609.98,0.3278796]
[1743541846596,1.23,611.08,609.98,0.3278796]
[1743541846999,0.28500295,611.07,609.98,0.3278796]
[1743541847894,1.44900295,611.07,609.98,0.3278796]
[1743541848294,2.51500295,611.07,609.98,0.3278796]
[1743541849507,2.23,611.07,609.98,0.3278796]
[1743541849705,3.148,611.07,609.98,0.3278796]
[1743541850005,0.28500061,611.06,609.98,0.3278796]
[1743541850504,0.30093877,611.05,609.98,0.3278796]
[1743541851500,0.30093829,611.04,609.99,1.23309435]
[1743541851698,0.30093829,611.05,610.01,0.32786347]
[1743541851903,0.28500061,611.06,610.01,0.32786347]
[1743541852099,0.3009377,611.04,610.01,0.32786347]
[1743541852299,0.3009377,611.05,610.01,0.32786347]
[1743541852503,0.3009377,611.04,610.01,0.32786347]
[1743541852805,0.3009377,611.03,610.01,0.32786347]
[1743541853006,0.3009377,611.05,610.01,0.32786347]
[1743541853207,0.30093761,611.04,610.03,1.23309435]
[1743541853507,0.30093761,611.03,610.05,0.32784198]
[1743541853705,0.30093761,611.05,610.05,0.32784198]
[1743541853905,0.30093761,611.04,610.05,0.32784198]
[1743541854104,0.30093761,611.05,610.05,0.32784198]
[1743541854306,0.30093761,611.04,610.05,0.32784198]
[1743541854505,0.30093761,611.05,610.05,0.32784198]
[1743541854705,0.30093761,611.04,610.05,0.32784198]
[1743541854908,0.28500061,611.06,610.05,0.32784198]
[1743541855511,3.148,611.07,610.05,0.32784198]
[1743541856108,0.28498078,611.06,610.05,0.32784198]
[1743541858509,3.915,611.07,610.05,0.32784198]
[1743541859110,0.28499595,611.06,610.05,0.32784198]
[1743541864513,2.849,611.07,610.05,0.32784198]
[1743541865019,0.28499828,611.05,610.05,0.32784198]
[1743541866420,3.725,611.07,610.05,0.32784198]
[1743541900647,3.725,611.07,610.09,1.23309435]
[1743541900852,3.725,611.07,610.11,0.32780973]
[1743541902348,3.725,611.07,610.11,1.56090408]
[1743541904452,3.725,611.07,610.14,1.23309435]
[1743541904652,3.725,611.07,610.16,0.32778287]
[1743541916165,4.00995977,611.07,610.16,0.32778287]
[1743541918666,3.725,611.07,610.16,0.32778287]
[1743541922068,0.28498311,611.06,610.16,0.32778287]
[1743541924569,2.50824296,612.25,610.16,0.32778287]
[1743541924762,0.3267173,612.15,610.16,0.32778287]
[1743541925063,1.50289316,612.14,610.16,0.32778287]
[1743541925266,2.50824296,612.09,610.18,1.23309435]
[1743541925465,0.32676001,612.07,610.19,0.32776676]
[1743541925666,0.30089316,612.06,610.19,0.32776676]
[1743541925867,0.32677602,612.04,610.19,0.32776676]
[1743541926068,0.30089316,612.03,610.19,0.32776676]
[1743541926270,0.32679204,612.01,610.19,0.32776676]
[1743541926471,0.30089316,612.0,610.19,0.32776676]
[1743541926671,0.32680806,611.98,610.19,0.32776676]
[1743541926870,0.30089316,611.97,610.19,0.32776676]
[1743541927068,0.32682408,611.95,610.19,0.32776676]
[1743541927266,0.30089316,611.94,610.19,0.32776676]
[1743541927468,0.3268401,611.92,610.19,0.32776676]
[1743541927664,0.30089316,611.91,610.19,0.32776676]
[1743541927870,0.30089316,611.9,610.19,0.32776676]
[1743541928066,0.32686147,611.88,610.19,0.32776676]
[1743541928267,0.30089316,611.87,610.19,0.32776676]
[1743541928470,0.30089316,611.86,610.19,0.32776676]
[1743541928666,0.30089316,611.85,610.19,0.32776676]
[1743541928969,0.32688818,611.83,610.19,0.32776676]
[1743541929165,0.30089316,611.82,610.19,0.32776676]
[1743541929371,0.32690421,611.8,610.19,0.32776676]
[1743541929569,0.30089316,611.79,610.19,0.32776676]
[1743541929769,0.32692024,611.77,610.19,0.32776676]
[1743541929967,0.30089316,611.76,610.19,0.32776676]
[1743541930170,0.32693628,611.74,610.19,0.32776676]
[1743541930366,0.30089316,611.73,610.19,0.32776676]
[1743541930579,0.32693628,611.74,610.19,0.32776676]
[1743541930580,0.30089316,611.72,610.19,0.32776676]
[1743541930874,0.62784547,611.71,610.19,0.32776676]
[1743541931179,0.62785081,611.7,610.19,0.32776676]
[1743541931379,0.62785616,611.69,610.19,0.32776676]
[1743541931579,0.6278615,611.68,610.19,0.32776676]
[1743541931880,0.62786685,611.67,610.19,0.32776676]
[1743541932076,0.28489096,611.71,610.19,0.32776676]
[1743541932077,0.6278722,611.66,610.19,0.32776676]
[1743541932280,0.62787754,611.65,610.19,0.32776676]
[1743541932480,0.62788289,611.64,610.19,0.32776676]
[1743541932682,0.62788823,611.63,610.19,0.32776676]
[1743541932876,0.62789358,611.62,610.19,0.32776676]
[1743541933076,0.62789893,611.61,610.19,0.32776676]
[1743541933276,0.28489096,611.71,610.19,0.32776676]
[1743541933277,0.62790427,611.6,610.19,0.32776676]
[1743541933482,0.62790962,611.59,610.19,0.32776676]
[1743541933681,0.62791497,611.58,610.19,0.32776676]
[1743541933883,0.62792031,611.57,610.19,0.32776676]
[1743541934082,0.62792566,611.56,610.19,0.32776676]
[1743541934278,0.30089316,611.55,610.19,0.32776676]
[1743541934477,0.30089316,611.54,610.19,0.32776676]
[1743541934675,0.30089316,611.53,610.19,0.32776676]
[1743541934880,0.30089316,611.52,610.19,0.32776676]
[1743541935080,0.30089316,611.51,610.19,0.32776676]
[1743541935281,0.30089316,611.5,610.19,0.32776676]
[1743541935482,0.30089316,611.49,610.19,0.32776676]
[1743541935682,0.30089316,611.48,610.19,0.32776676]
[1743541935888,0.30089316,611.47,610.19,0.32776676]
[1743541936183,0.30089316,611.46,610.19,0.32776676]
[1743541936379,0.30089316,611.55,610.19,0.32776676]
[1743541936685,0.30089316,611.54,610.19,0.32776676]
[1743541936881,0.30089316,611.53,610.19,0.32776676]
[1743541937081,0.30089316,611.52,610.19,0.32776676]
[1743541937285,0.30089316,611.51,610.19,0.32776676]
[1743541937480,0.30089279,611.5,610.19,0.32776676]
[1743541937680,0.30089279,611.49,610.19,0.32776676]
[1743541937987,0.30089279,611.48,610.19,0.32776676]
[1743541938177,0.30089279,611.53,610.19,0.32776676]
[1743541938380,0.30089279,611.52,610.19,1.56086111]
[1743541938579,0.30089279,611.51,610.19,1.56086111]
[1743541938881,0.30089279,611.5,610.19,1.56086111]
[1743541939080,0.30089338,611.49,610.19,1.56086111]
[1743541939286,0.30089338,611.53,610.19,1.56086111]
[1743541939588,0.30089338,611.52,610.19,1.56086111]
[1743541939781,0.30089338,611.55,610.19,1.56086111]
[1743541939981,0.30089338,611.54,610.19,1.56086111]
[1743541940181,0.28490961,611.51,610.19,1.56086111]
[1743541940386,0.30089338,611.5,610.19,0.32776676]
[1743541942790,0.30089338,611.52,610.19,0.32776676]
[1743541942988,0.30089338,611.51,610.19,0.32776676]
[1743541943189,0.28492828,611.49,610.19,0.32776676]
[1743541943388,0.30089338,611.48,610.19,0.32776676]
[1743541945896,0.30089338,611.47,610.19,0.32776676]
[1743541946089,0.58581932,611.47,610.19,0.32776676]
[1743541946292,0.30089338,611.46,610.19,0.32776676]
[1743541946994,1.50992594,611.47,610.19,0.32776676]
[1743541947197,0.30089338,611.46,610.19,0.32776676]
[1743541948893,0.28493061,611.45,610.19,0.32776676]
[1743541949096,0.30089338,611.44,610.19,0.32776676]
[1743541950195,0.28493061,611.45,610.19,0.32776676]
[1743541950495,0.30088748,611.44,610.19,0.32776676]
[1743541951896,0.58580476,611.43,610.19,0.32776676]
[1743541952096,0.30088931,611.42,610.19,0.32776676]
[1743541952796,0.30088931,611.42,610.26,1.23309435]
[1743541952995,0.30088931,611.42,610.27,0.32772379]
[1743541953594,0.28491545,611.43,610.27,0.32772379]
[1743541954699,1.225,611.47,610.27,0.32772379]
[1743541954894,0.28490845,611.42,610.27,0.32772379]
[1743541955400,0.779,611.41,610.27,0.32772379]
[1743541956401,1.051,611.4,610.27,0.32772379]
[1743541957902,0.28491545,611.39,610.27,0.32772379]
[1743541962607,1.52687504,611.38,610.27,0.32772379]
[1743541962803,0.30087504,611.37,610.27,0.32772379]
[1743541964008,0.28492011,611.36,610.27,0.32772379]
[1743541965109,0.30087,611.35,610.27,0.32772379]
[1743541966410,0.30086687,611.34,610.27,0.32772379]
[1743541966710,0.30086687,611.33,610.27,0.32772379]
[1743541966908,0.30086687,611.37,610.27,0.32772379]
[1743541967210,0.28488862,611.33,610.27,0.32772379]
[1743541969614,1.226,611.38,610.27,0.32772379]
[1743541970016,0.28491428,611.32,610.27,0.32772379]
[1743541971210,1.13491428,611.32,610.27,0.32772379]
[1743541972719,0.85,611.32,610.27,0.32772379]
[1743541973120,0.28493878,611.31,610.27,0.32772379]
[1743541978724,0.3008699,611.3,610.27,0.32772379]
[1743541978924,0.3008699,611.29,610.27,0.32772379]
[1743541979126,0.3008702,611.28,610.27,0.32772379]
[1743541979324,0.3008702,611.29,610.27,0.32772379]
[1743541979523,0.3008702,611.28,610.27,0.32772379]
[1743541979725,0.3008702,611.29,610.27,0.32772379]
[1743541980026,0.3008702,611.28,610.27,0.32772379]
[1743541980221,0.3008702,611.29,610.27,0.32772379]
[1743541980420,0.3008702,611.28,610.27,0.32772379]
[1743541980624,0.30087242,611.27,610.27,0.32772379]
[1743541980820,0.28493644,611.3,610.27,0.32772379]
[1743541980821,0.30087242,611.29,610.27,0.32772379]
[1743541981025,0.30087242,611.28,610.27,0.32772379]
[1743541981224,0.30087242,611.27,610.27,0.32772379]
[1743541981930,0.28491778,611.26,610.27,0.32772379]
[1743541982131,0.30087242,611.25,610.27,0.32772379]
[1743541983530,0.30087212,611.24,610.27,0.32772379]
[1743541983725,0.30087212,611.25,610.27,0.32772379]
[1743541983924,0.30087212,611.24,610.27,0.32772379]
[1743541984131,0.28491778,611.26,610.27,0.32772379]
[1743541984825,1.226,611.28,610.27,0.32772379]
[1743541985034,0.28491311,611.25,610.27,0.32772379]
[1743541986529,1.025,611.24,610.27,0.32772379]
[1743541986933,1.179,611.23,610.27,0.32772379]
[1743541988139,0.28493178,611.22,610.27,0.32772379]
[1743541990643,1.179,611.23,610.27,0.32772379]
[1743541991041,0.28492944,611.21,610.27,0.32772379]
[1743541993643,1.179,611.23,610.27,0.32772379]
[1743541994044,0.28493178,611.22,610.27,0.32772379]
[1743541999655,1.179,611.23,610.27,0.32772379]
[1743541999849,0.28492244,611.21,610.27,0.32772379]
[1743542000055,0.300873,611.2,610.27,0.32772379]